bitfinex/quotes_BTCUSD_20250813
["timestamp","ask_amount","ask_price","bid_price","bid_amount"]
[1755125133262,4.81932666,123250.0,123240.0,0.45228]
[1755125133263,4.90204991,123250.0,123240.0,0.45228]
[1755125133670,4.53270887,123250.0,123240.0,0.45228]
[1755125134275,4.53270887,123250.0,123240.0,0.32456]
[1755125134479,4.53270887,123250.0,123240.0,0.45228]
[1755125135245,4.44998562,123250.0,123240.0,0.45228]
[1755125135459,4.44685562,123250.0,123240.0,0.45228]
[1755125136205,4.44685562,123250.0,123240.0,0.45444]
[1755125136410,4.44685562,123250.0,123240.0,0.45232]
[1755125137576,4.44999562,123250.0,123240.0,0.32456]
[1755125137775,4.44999562,123250.0,123240.0,0.45232]
[1755125137980,4.44999562,123250.0,123240.0,0.32456]
[1755125138217,4.44999562,123250.0,123240.0,0.45228]
[1755125138568,4.44999562,123250.0,123240.0,0.32456]
[1755125139197,4.44999562,123250.0,123240.0,0.45232]
[1755125140487,4.81933666,123250.0,123240.0,0.45232]
[1755125140693,4.44685562,123250.0,123240.0,0.45232]
[1755125140961,4.44685562,123250.0,123240.0,0.45444]
[1755125141186,4.44685562,123250.0,123240.0,0.32668]
[1755125141187,4.44477562,123250.0,123240.0,0.32668]
[1755125141330,4.44477562,123250.0,123240.0,0.3298]
[1755125141537,4.44477562,123250.0,123240.0,0.75296]
[1755125142003,4.44477562,123250.0,123240.0,0.65188]
[1755125142747,4.44477562,123250.0,123240.0,0.45756]
[1755125142970,4.44689562,123250.0,123240.0,0.45232]
[1755125144166,4.44477562,123250.0,123240.0,0.45444]
[1755125144408,4.44477562,123250.0,123240.0,0.45756]
[1755125144966,4.44477562,123250.0,123240.0,0.45444]
[1755125145362,4.44477562,123250.0,123240.0,0.45232]
[1755125145569,4.44477562,123250.0,123240.0,0.4504959]
[1755125146335,4.44686562,123250.0,123240.0,0.4504959]
[1755125146532,4.44686562,123250.0,123240.0,0.3248559]
[1755125146744,4.44686562,123250.0,123240.0,0.4525759]
[1755125146934,4.44686562,123250.0,123240.0,0.3248559]
[1755125147167,4.44477562,123250.0,123240.0,0.3279759]
[1755125147377,4.44477562,123250.0,123240.0,0.4556959]
[1755125147793,4.44477562,123250.0,123240.0,0.90776019]
[1755125148004,4.44477562,123250.0,123240.0,1.20175019]
[1755125148256,4.44477562,123250.0,123240.0,0.81740915]
[1755125148436,4.44477562,123250.0,123240.0,0.94512915]
[1755125148691,4.44477562,123250.0,123240.0,0.81740915]
[1755125148894,4.44477562,123250.0,123240.0,0.94512915]
[1755125149890,4.44477562,123250.0,123240.0,0.97005066]
[1755125150450,4.44477562,123250.0,123240.0,1.3393917]
[1755125151475,4.44477562,123250.0,123240.0,1.5320717]
[1755125151671,4.44477562,123250.0,123240.0,1.5587517]
[1755125152314,4.44477562,123250.0,123240.0,1.53383019]
[1755125152526,4.44477562,123250.0,123240.0,1.16448915]
[1755125152945,4.44477562,123250.0,123240.0,0.97012915]
[1755125153145,4.44477562,123250.0,123240.0,0.99505066]
[1755125153550,4.44477562,123250.0,123240.0,0.97005066]
[1755125153754,4.44477562,123250.0,123240.0,1.3393917]
[1755125153999,4.44477562,123250.0,123240.0,1.3643917]
[1755125155364,4.44477562,123250.0,123240.0,1.2116717]
[1755125155565,4.44477562,123250.0,123240.0,1.3643917]
[1755125155782,4.44477562,123250.0,123240.0,1.3393917]
[1755125156156,4.44477562,123250.0,123240.0,1.2366717]
[1755125156368,4.44477562,123250.0,123240.0,1.3643917]
[1755125156527,4.44477562,123250.0,123240.0,1.19809385]
[1755125157134,4.44477562,123250.0,123240.0,1.17309385]
[1755125157294,4.44477562,123250.0,123240.0,1.19809385]
[1755125158316,4.44477562,123250.0,123240.0,1.17309385]
[1755125158537,4.44477562,123250.0,123240.0,1.19805385]
[1755125158946,4.44477562,123250.0,123240.0,0.80371281]
[1755125159151,4.44477562,123250.0,123240.0,1.19805385]
[1755125159575,4.44477562,123250.0,123240.0,0.82871281]
[1755125160611,4.44477562,123250.0,123240.0,0.5694013]
[1755125160962,4.44477562,123250.0,123240.0,0.6918413]
[1755125160963,4.44686562,123250.0,123240.0,0.6918413]
[1755125161498,4.44686562,123250.0,123240.0,0.70844215]
[1755125161702,4.44686562,123250.0,123240.0,0.83612215]
[1755125162127,4.44686562,123250.0,123240.0,1.16068215]
[1755125163379,4.44686562,123250.0,123240.0,1.03300215]
[1755125163574,4.44686562,123250.0,123240.0,0.93196215]
[1755125163751,4.44999562,123250.0,123240.0,0.86544215]
[1755125165155,4.44999562,123250.0,123240.0,0.73764215]
[1755125165356,4.44999562,123250.0,123240.0,0.86552215]
[1755125166454,4.41113246,123250.0,123240.0,0.67948886]
[1755125166656,4.41113246,123250.0,123240.0,0.80728886]
[1755125167263,4.41113246,123250.0,123240.0,0.46728886]
[1755125169504,4.41113246,123250.0,123240.0,0.46724886]
[1755125171437,4.41113246,123250.0,123240.0,0.76264886]
[1755125172146,4.40800246,123250.0,123240.0,0.66160886]
[1755125172549,4.41113246,123250.0,123240.0,0.66160886]
[1755125174383,4.41113246,123250.0,123240.0,0.64668]
[1755125175057,4.41113246,123250.0,123240.0,0.32456]
[1755125175286,4.41113246,123250.0,123240.0,0.45232]
[1755125178461,4.41113246,123250.0,123240.0,0.45228]
[1755125178803,4.41113246,123250.0,123240.0,0.32456]
[1755125179475,4.8242034,123250.0,123240.0,0.32456]
[1755125179677,4.49385571,123250.0,123240.0,0.32456]
[1755125179827,4.8485094,123250.0,123240.0,0.45248]
[1755125180244,4.8485094,123250.0,123240.0,0.32456]
[1755125180438,5.50920478,123250.0,123240.0,0.32456]
[1755125180841,5.84920478,123250.0,123240.0,0.32456]
[1755125181059,5.84920478,123250.0,123240.0,0.45256]
[1755125181259,5.87420478,123250.0,123240.0,0.32456]
[1755125181420,5.87420478,123250.0,123240.0,0.74796]
[1755125181639,5.87420478,123250.0,123240.0,0.61996]
[1755125182091,5.87420478,123250.0,123240.0,0.64696]
[1755125182869,5.8751322,123250.0,123240.0,0.64696]
[1755125183069,5.2530842,123250.0,123240.0,0.64696]
[1755125183820,5.27141574,123250.0,123240.0,0.64696]
[1755125184219,5.2280842,123250.0,123240.0,0.64696]
[1755125184420,5.2530842,123250.0,123240.0,0.64696]
[1755125185056,5.2530842,123250.0,123240.0,0.45268]
[1755125185229,5.2280842,123250.0,123240.0,0.45268]
[1755125185433,5.2530842,123250.0,123240.0,0.45268]
[1755125186049,4.85503171,123250.0,123240.0,0.32456]
[1755125186323,4.43021846,123250.0,123240.0,0.32766]
[1755125186460,4.43021846,123250.0,123240.0,0.45578]
[1755125186683,4.43021846,123250.0,123240.0,0.32766]
[1755125186882,4.43021846,123250.0,123240.0,0.32456]
[1755125187080,4.43021846,123250.0,123240.0,0.45268]
[1755125187508,4.8828642,123250.0,123240.0,0.45268]
[1755125187708,4.8859942,123250.0,123240.0,0.45268]
[1755125188083,4.8828642,123250.0,123240.0,0.45268]
[1755125188290,4.51294171,123250.0,123240.0,0.45268]
[1755125188912,4.51294171,123250.0,123240.0,0.32456]
[1755125189119,4.43021846,123250.0,123240.0,0.45574]
[1755125189316,4.40591246,123250.0,123240.0,0.45566]
[1755125189560,4.40591246,123250.0,123240.0,0.45066]
[1755125189742,4.40591246,123250.0,123240.0,0.45278]
[1755125190569,4.40591246,123250.0,123240.0,0.32478]
[1755125190924,4.40591246,123250.0,123240.0,0.45278]
[1755125191543,4.40591246,123250.0,123240.0,0.84934]
[1755125192139,4.40591246,123250.0,123240.0,0.62026]
[1755125192348,4.8606582,123250.0,123240.0,0.61504]
[1755125192549,4.8606582,123250.0,123240.0,0.64188]
[1755125193046,4.8606582,123250.0,123240.0,0.31956]
[1755125193253,4.8606582,123250.0,123240.0,0.44744]
[1755125193698,4.8606582,123250.0,123240.0,0.31956]
[1755125193905,4.8606582,123250.0,123240.0,0.44744]
[1755125194554,4.48863571,123250.0,123240.0,0.44956]
[1755125194678,4.48863571,123250.0,123240.0,0.45266]
[1755125195442,4.40591246,123250.0,123240.0,0.45266]
[1755125195738,4.40591246,123250.0,123240.0,0.45262]
[1755125199371,4.8606482,123250.0,123240.0,0.31956]
[1755125199599,4.8637782,123250.0,123240.0,0.44732]
[1755125199803,4.49385571,123250.0,123240.0,0.44732]
[1755125200040,4.8637782,123250.0,123240.0,0.44732]
[1755125200550,4.8606482,123250.0,123240.0,0.44732]
[1755125200886,4.49072571,123250.0,123240.0,0.44732]
[1755125201135,4.8606482,123250.0,123240.0,0.44732]
[1755125201345,4.8606482,123250.0,123240.0,0.45254]
[1755125201573,4.8585582,123250.0,123240.0,0.74802]
[1755125201790,4.40591246,123250.0,123240.0,0.74802]
[1755125203489,4.40591246,123250.0,123240.0,0.64694]
[1755125203705,4.40591246,123250.0,123240.0,0.64802]
[1755125204319,4.40800246,123250.0,123240.0,0.51918]
[1755125204524,4.40800246,123250.0,123240.0,0.32168]
[1755125204721,4.40800246,123250.0,123240.0,0.45052]
[1755125204938,4.40800246,123250.0,123240.0,0.4484]
[1755125205200,4.77792495,123250.0,123240.0,0.31956]
[1755125205454,4.49072571,123250.0,123240.0,0.31956]
[1755125205650,4.8606482,123250.0,123240.0,0.44844]
[1755125205915,4.49072571,123250.0,123240.0,0.44844]
[1755125206151,4.8606482,123250.0,123240.0,0.44844]
[1755125206815,4.49072571,123250.0,123240.0,0.44844]
[1755125207057,4.8637782,123250.0,123240.0,0.31956]
[1755125207280,4.8637782,123250.0,123240.0,0.44868]
[1755125207962,4.8637782,123250.0,123240.0,0.31956]
[1755125207963,4.49385571,123250.0,123240.0,0.31956]
[1755125208179,4.49385571,123250.0,123240.0,0.44884]
[1755125208358,4.8606482,123250.0,123240.0,0.44884]
[1755125208600,4.49072571,123250.0,123240.0,0.31956]
[1755125208806,4.49072571,123250.0,123240.0,0.44888]
[1755125209290,4.8606482,123250.0,123240.0,0.44888]
[1755125209514,4.49072571,123250.0,123240.0,0.44892]
[1755125209726,4.8606482,123250.0,123240.0,0.44892]
[1755125209951,4.49072571,123250.0,123240.0,0.44892]
[1755125210631,4.8606482,123250.0,123240.0,0.44892]
[1755125210837,4.49072571,123250.0,123240.0,0.45104]
[1755125210990,4.48863571,123250.0,123240.0,0.32478]
[1755125211397,4.40591246,123250.0,123240.0,0.5553]
[1755125211601,4.40591246,123250.0,123240.0,0.7497]
[1755125211966,4.40591246,123250.0,123240.0,0.51918]
[1755125212177,4.40591246,123250.0,123240.0,0.6487]
[1755125212385,4.40591246,123250.0,123240.0,0.53702325]
[1755125212386,4.07567246,123250.0,123240.0,0.53702325]
[1755125212591,4.06917246,123250.0,123240.0,1.11530574]
[1755125212991,4.03832513,123250.0,123240.0,2.36220605]
[1755125213227,4.03300085,123250.0,123240.0,2.51864605]
[1755125213436,3.99497153,123250.0,123240.0,2.51864605]
[1755125213647,3.90686718,123250.0,123240.0,2.41220605]
[1755125213823,3.90686718,123250.0,123240.0,2.56323408]
[1755125213824,3.89876892,123250.0,123240.0,2.56323408]
[1755125214068,3.84487415,123250.0,123240.0,2.80159657]
[1755125214286,3.83255744,123250.0,123240.0,2.93319657]
[1755125214691,3.79611527,123250.0,123240.0,2.93319657]
[1755125215118,3.78801701,123250.0,123240.0,2.56327408]
[1755125215323,3.7596731,123250.0,123240.0,2.56327408]
[1755125215492,3.75157484,123250.0,123240.0,2.56327408]
[1755125215913,3.71513267,123250.0,123240.0,2.93319657]
[1755125216332,3.21487294,123250.0,123240.0,3.67304155]
[1755125216534,3.17865905,123250.0,123240.0,3.69634511]
[1755125216740,3.17056079,123250.0,123240.0,2.58653764]
[1755125217214,3.13411862,123250.0,123240.0,2.95646013]
[1755125217422,3.12602036,123250.0,123240.0,2.95646013]
[1755125217633,3.12602036,123250.0,123240.0,2.58653764]
[1755125217839,3.08957819,123250.0,123240.0,2.21661515]
[1755125218041,3.08957819,123250.0,123240.0,2.58653764]
[1755125218251,3.08147993,123250.0,123240.0,2.58653764]
[1755125218460,3.04636756,123250.0,123240.0,2.58653764]
[1755125218631,3.0099615,123250.0,123240.0,2.95646013]
[1755125218830,3.0099615,123250.0,123240.0,2.56423408]
[1755125219038,3.00187127,123250.0,123240.0,2.56423408]
[1755125219257,2.97355544,123250.0,123240.0,2.57792144]
[1755125219469,2.96546521,123250.0,123240.0,2.57792144]
[1755125219671,2.96546521,123250.0,123240.0,2.44536144]
[1755125219844,2.92905915,123250.0,123240.0,2.57792144]
[1755125220047,2.92905915,123250.0,123240.0,2.60220344]
[1755125220311,2.92096892,123250.0,123240.0,2.58847608]
[1755125220540,2.89265309,123250.0,123240.0,2.59531976]
[1755125220750,2.88456286,123250.0,123240.0,2.44861305]
[1755125220953,2.88456286,123250.0,123240.0,2.25947335]
[1755125221164,2.8481568,123250.0,123240.0,2.79083335]
[1755125221375,2.8481568,123250.0,123240.0,1.11120586]
[1755125221594,2.8481568,123250.0,123240.0,1.16505535]
[1755125221805,2.8481568,123250.0,123240.0,0.72577286]
[1755125222011,2.8481568,123250.0,123240.0,2.02844252]
[1755125222219,2.8481568,123250.0,123240.0,2.03007447]
[1755125222451,2.8481568,123250.0,123240.0,2.35463447]
[1755125222874,2.8481568,123250.0,123240.0,2.01463447]
[1755125223045,2.8481568,123250.0,123240.0,2.22191447]
[1755125223268,2.8481568,123250.0,123240.0,1.98519198]
[1755125223469,2.81175074,123250.0,123240.0,2.35511447]
[1755125223909,2.80366051,123250.0,123240.0,2.69571447]
[1755125224054,2.76725445,123250.0,123240.0,2.69571447]
[1755125224278,1.86491658,123250.0,123240.0,4.13004194]
[1755125224514,1.84329764,123250.0,123240.0,4.36794997]
[1755125224726,1.81498181,123250.0,123240.0,4.23478997]
[1755125224938,1.77068195,123250.0,123240.0,4.37122997]
[1755125225150,1.73134563,123250.0,123240.0,3.92242997]
[1755125225361,1.7232554,123250.0,123240.0,3.92246997]
[1755125225574,1.69493957,123250.0,123240.0,3.92246997]
[1755125225796,1.68684934,123250.0,123240.0,2.44278001]
[1755125226018,1.68684934,123250.0,123240.0,2.6762225]
[1755125226296,1.6504478,123250.0,123240.0,1.85828808]
[1755125226500,1.6504478,123250.0,123240.0,1.76492608]
[1755125226501,1.64235857,123250.0,123240.0,1.76492608]
[1755125226711,1.64235857,123250.0,123240.0,2.30012857]
[1755125226975,1.63426934,123250.0,123240.0,2.30020857]
[1755125227185,1.63426934,123250.0,123240.0,1.56680908]
[1755125227412,1.63426934,123250.0,123240.0,1.54202666]
[1755125227635,1.62618011,123250.0,123240.0,1.56710666]
[1755125227873,1.62618011,123250.0,123240.0,1.93702915]
[1755125228093,1.58977857,123250.0,123240.0,1.40130666]
[1755125228344,1.58977857,123250.0,123240.0,1.79622915]
[1755125228564,1.58168934,123250.0,123240.0,1.79622915]
[1755125228799,1.57360011,123250.0,123240.0,1.37630666]
[1755125229024,1.57360011,123250.0,123240.0,1.37608908]
[1755125229252,1.57656011,123250.0,123240.0,1.54276908]
[1755125229478,1.57656011,123250.0,123240.0,1.88276908]
[1755125229697,1.57360011,123250.0,123240.0,1.54294666]
[1755125229924,1.57360011,123250.0,123240.0,1.88310666]
[1755125230147,1.57360011,123250.0,123240.0,2.11122915]
[1755125230373,1.56551088,123250.0,123240.0,2.25310915]
[1755125230811,1.55742165,123250.0,123240.0,1.76630666]
[1755125231016,1.56038165,123250.0,123240.0,1.74108908]
[1755125231479,1.56038165,123250.0,123240.0,1.75909108]
[1755125231692,1.56038165,123250.0,123240.0,1.63309108]
[1755125231906,1.56038165,123250.0,123240.0,1.00012508]
[1755125232147,1.56038165,123250.0,123240.0,1.02512508]
[1755125232362,1.56038165,123250.0,123240.0,1.50900508]
[1755125232564,1.56038165,123250.0,123240.0,1.68460757]
[1755125232804,1.56038165,123250.0,123240.0,1.90537632]
[1755125233030,1.56038165,123250.0,123240.0,1.76153632]
[1755125233238,1.56038165,123250.0,123240.0,1.90537632]
[1755125233675,1.55742165,123250.0,123240.0,1.90537632]
[1755125234087,1.55742165,123250.0,123240.0,2.30029881]
[1755125234292,1.56038165,123250.0,123240.0,1.78653632]
[1755125234502,1.56038165,123250.0,123240.0,1.28964508]
[1755125234713,1.56038165,123250.0,123240.0,1.32003608]
[1755125235134,1.56038165,123250.0,123240.0,1.28988508]
[1755125235332,1.56038165,123250.0,123240.0,0.80584508]
[1755125235549,1.64006165,123250.0,123240.0,0.80584508]
[1755125236163,1.64006165,123250.0,123240.0,1.29056508]
[1755125236370,1.64006165,123250.0,123240.0,1.14584508]
[1755125237002,1.64006165,123250.0,123240.0,1.29048508]
[1755125237411,1.64006165,123250.0,123240.0,1.14584508]
[1755125237629,1.64006165,123250.0,123240.0,1.29077538]
[1755125238854,1.64006165,123250.0,123240.0,1.29069538]
[1755125239315,1.56038165,123250.0,123240.0,1.14613538]
[1755125239532,1.64006165,123250.0,123240.0,1.29040508]
[1755125239750,1.64006165,123250.0,123240.0,1.29056508]
[1755125240714,1.64006165,123250.0,123240.0,1.29052508]
[1755125241120,1.56038165,123250.0,123240.0,1.51576757]
[1755125241326,1.56038165,123250.0,123240.0,1.66069787]
[1755125241541,1.56038165,123250.0,123240.0,2.48358938]
[1755125241738,1.56038165,123250.0,123240.0,2.23790938]
[1755125241943,1.55742165,123250.0,123240.0,2.23790938]
[1755125242144,1.55742165,123250.0,123240.0,2.16186938]
[1755125242330,1.55742165,123250.0,123240.0,2.50699187]
[1755125242531,1.55742165,123250.0,123240.0,1.99258938]
[1755125242735,1.55742165,123250.0,123240.0,2.13706938]
[1755125242941,1.55742165,123250.0,123240.0,2.16206938]
[1755125243515,1.54918191,123250.0,123240.0,2.01758938]
[1755125243645,1.54108692,123250.0,123240.0,2.16194938]
[1755125244082,1.53299193,123250.0,123240.0,2.16194938]
[1755125244283,1.50465944,123250.0,123240.0,2.01758938]
[1755125244535,1.49656445,123250.0,123240.0,2.16186938]
[1755125244863,1.46823196,123250.0,123240.0,2.16186938]
[1755125245063,1.46013697,123250.0,123240.0,2.16186938]
[1755125245495,1.42370949,123250.0,123240.0,2.16186938]
[1755125245624,1.42370949,123250.0,123240.0,2.16162938]
[1755125246000,1.41561943,123250.0,123240.0,2.16162938]
[1755125246211,1.40752937,123250.0,123240.0,2.01758938]
[1755125246418,1.40752937,123250.0,123240.0,2.16158938]
[1755125246645,1.39943931,123250.0,123240.0,2.16158938]
[1755125246811,1.39943931,123250.0,123240.0,2.16154938]
[1755125247019,1.39134925,123250.0,123240.0,2.16154938]
[1755125247228,1.39134925,123250.0,123240.0,2.16004938]
[1755125247431,1.38325919,123250.0,123240.0,2.18433038]
[1755125247851,1.37516913,123250.0,123240.0,2.18433038]
[1755125248186,1.36707907,123250.0,123240.0,2.18433038]
[1755125248590,1.35898901,123250.0,123240.0,2.18409038]
[1755125248792,1.35898901,123250.0,123240.0,2.04037038]
[1755125249004,1.35089895,123250.0,123240.0,2.18409038]
[1755125249408,1.34280889,123250.0,123240.0,2.18409038]
[1755125249843,1.33471883,123250.0,123240.0,2.18409038]
[1755125250054,1.33471883,123250.0,123240.0,2.04037038]
[1755125250268,1.32662877,123250.0,123240.0,2.18417038]
[1755125250710,1.31853871,123250.0,123240.0,2.18417038]
[1755125250938,1.31044865,123250.0,123240.0,2.18417038]
[1755125251347,1.30235859,123250.0,123240.0,2.18417038]
[1755125251557,1.30235859,123250.0,123240.0,2.37821038]
[1755125251763,1.29426853,123250.0,123240.0,2.37821038]
[1755125252165,1.28617784,123250.0,123240.0,2.32821038]
[1755125252595,1.27808715,123250.0,123240.0,2.18397038]
[1755125252831,1.27808715,123250.0,123240.0,2.18389038]
[1755125253033,0.82119646,123250.0,123240.0,2.63269038]
[1755125253476,0.81310577,123250.0,123240.0,2.63269038]
[1755125253682,0.80501508,123250.0,123240.0,2.48917038]
[1755125254158,0.79692439,123250.0,123240.0,2.63233038]
[1755125254559,0.7888337,123250.0,123240.0,2.63233038]
[1755125254781,0.7888337,123250.0,123240.0,2.63217038]
[1755125254990,0.78074301,123250.0,123240.0,2.63217038]
[1755125255407,0.77265232,123250.0,123240.0,2.63217038]
[1755125255617,0.77265232,123250.0,123240.0,2.18337038]
[1755125255819,0.76456163,123250.0,123240.0,2.18337038]
[1755125256232,0.7281535,123250.0,123240.0,2.23194038]
[1755125256498,0.72006281,123250.0,123240.0,2.08894038]
[1755125256744,0.72006281,123250.0,123240.0,2.25452394]
[1755125256959,0.68365468,123250.0,123240.0,2.62339187]
[1755125257406,0.67556399,123250.0,123240.0,2.62339187]
[1755125257839,0.6674733,123250.0,123240.0,2.62339187]
[1755125258311,0.65938321,123250.0,123240.0,2.62339187]
[1755125258551,0.65129312,123250.0,123240.0,2.62339187]
[1755125258775,0.65129312,123250.0,123240.0,2.60052831]
[1755125258990,0.64320303,123250.0,123240.0,2.45792831]
[1755125259197,0.64320303,123250.0,123240.0,2.60028831]
[1755125259417,0.6067976,123250.0,123240.0,2.60028831]
[1755125259632,0.6067976,123250.0,123240.0,3.13428831]
[1755125259834,0.59870751,123250.0,123240.0,3.36099624]
[1755125260049,0.59870751,123250.0,123240.0,3.13444831]
[1755125260271,0.56230208,123250.0,123240.0,3.13444831]
[1755125260502,0.11350208,123250.0,123240.0,3.50343624]
[1755125260723,0.10541199,123250.0,123240.0,3.13444831]
[1755125260952,0.06900656,123250.0,123240.0,3.13444831]
[1755125261412,0.03260113,123250.0,123240.0,3.13424831]
[1755125261593,0.03260113,123250.0,123240.0,3.32844831]
[1755125261745,0.02451104,123250.0,123240.0,3.32844831]
[1755125261942,0.06985771,123290.0,123280.0,0.05]
[1755125262166,0.06985771,123290.0,123280.0,5.95174118]
[1755125262381,0.06985771,123290.0,123280.0,6.32072911]
[1755125263051,0.06684771,123290.0,123280.0,6.17861832]
[1755125263275,0.06985771,123290.0,123280.0,6.17861832]
[1755125263505,0.00301,123290.0,123280.0,6.17861832]
[1755125263722,0.06684771,123330.0,123320.0,0.025]
[1755125263931,0.06684771,123330.0,123320.0,4.40611618]
[1755125264091,0.15288771,123330.0,123320.0,4.13305118]
[1755125264348,0.15589771,123330.0,123320.0,3.82006418]
[1755125264543,0.15589771,123330.0,123320.0,3.96182418]
[1755125264803,0.15589771,123330.0,123320.0,3.33312325]
[1755125265120,0.15639317,123330.0,123320.0,3.73137018]
[1755125265245,0.15639317,123330.0,123320.0,3.73129018]
[1755125265664,0.15639317,123330.0,123320.0,3.36230225]
[1755125265932,0.15639317,123330.0,123320.0,3.73129018]
[1755125266155,0.15639317,123330.0,123320.0,3.73125018]
[1755125266538,0.08954546,123330.0,123320.0,3.73125018]
[1755125267694,0.08954546,123330.0,123320.0,3.7557473]
[1755125267948,0.00350546,123330.0,123320.0,3.7557473]
[1755125268309,0.00350546,123330.0,123320.0,3.6141073]
[1755125268512,0.00350546,123330.0,123320.0,3.7554273]
[1755125269222,0.00350546,123330.0,123320.0,3.7553873]
[1755125269702,0.13954546,123330.0,123320.0,3.2151813]
[1755125269905,0.13954546,123330.0,123320.0,3.3562613]
[1755125270170,0.13954546,123330.0,123320.0,2.83068352]
[1755125270314,0.13954546,123330.0,123320.0,3.34071145]
[1755125270517,0.13954546,123330.0,123320.0,2.24851445]
[1755125270713,0.13954546,123330.0,123320.0,2.38959445]
[1755125271118,0.13954546,123330.0,123320.0,2.38955445]
[1755125271579,0.13954546,123330.0,123320.0,2.78563445]
[1755125271783,0.13954546,123330.0,123320.0,2.27351445]
[1755125271997,0.13954546,123330.0,123320.0,2.41443445]
[1755125272396,0.13954546,123330.0,123320.0,2.27351445]
[1755125272592,0.13954546,123330.0,123320.0,2.41439445]
[1755125272970,0.13954546,123330.0,123320.0,1.87952652]
[1755125273172,0.13954546,123330.0,123320.0,2.02024652]
[1755125273401,0.13954546,123330.0,123320.0,2.38923445]
[1755125273955,0.13954546,123330.0,123320.0,0.8409334]
[1755125274304,0.13954546,123330.0,123320.0,0.9814934]
[1755125274514,0.13954546,123330.0,123320.0,1.3214934]
[1755125274713,0.13954546,123330.0,123320.0,1.1809334]
[1755125274922,0.13954546,123330.0,123320.0,1.3214534]
[1755125275123,0.13954546,123330.0,123320.0,1.1809334]
[1755125275317,0.13954546,123330.0,123320.0,1.6027634]
[1755125275538,0.13954546,123330.0,123320.0,1.4280344]
[1755125275754,0.13954546,123330.0,123320.0,1.4740424]
[1755125275957,0.13954546,123330.0,123320.0,1.1809334]
[1755125276161,0.13954546,123330.0,123320.0,1.5037804]
[1755125276364,0.13954546,123330.0,123320.0,1.6440204]
[1755125276574,0.13954546,123330.0,123320.0,1.4285784]
[1755125277442,0.13954546,123330.0,123320.0,1.1809334]
[1755125277654,0.13954546,123330.0,123320.0,1.4368534]
[1755125278807,0.13954546,123330.0,123320.0,1.2967334]
[1755125279017,0.13954546,123330.0,123320.0,1.1809334]
[1755125279368,0.13954546,123330.0,123320.0,1.3208534]
[1755125279594,0.13954546,123330.0,123320.0,1.1809334]
[1755125279776,0.13954546,123330.0,123320.0,1.3208134]
[1755125280663,0.04115546,123330.0,123320.0,1.54992133]
[1755125280916,0.04115546,123330.0,123320.0,1.7479484]
[1755125281124,0.04115546,123330.0,123320.0,1.97645633]
[1755125281351,0.04115546,123330.0,123320.0,1.69040133]
[1755125281560,0.04115546,123330.0,123320.0,1.5770134]
[1755125281768,0.13083546,123330.0,123320.0,1.5155334]
[1755125283106,0.13083546,123330.0,123320.0,1.1809334]
[1755125283307,0.50489109,123330.0,123320.0,0.65821015]
[1755125283538,0.13083546,123330.0,123320.0,0.65821015]
[1755125283743,0.13083546,123330.0,123320.0,0.79837015]
[1755125284318,0.13083546,123330.0,123320.0,0.8810934]
[1755125284556,0.13083546,123330.0,123320.0,0.8812534]
[1755125284765,0.49982339,123330.0,123320.0,0.65821015]
[1755125285008,0.50307339,123330.0,123320.0,0.64872]
[1755125285232,0.50307339,123330.0,123320.0,0.78892]
[1755125285658,0.58579664,123330.0,123320.0,0.64872]
[1755125286281,0.58579664,123330.0,123320.0,0.78884]
[1755125286601,0.61008564,123330.0,123320.0,0.64872]
[1755125286803,0.61008564,123330.0,123320.0,0.78876]
[1755125287323,0.61008564,123330.0,123320.0,0.64872]
[1755125287687,0.61008564,123330.0,123320.0,0.78872]
[1755125287822,0.61008564,123330.0,123320.0,0.64872]
[1755125288028,0.61008564,123330.0,123320.0,0.78856]
[1755125288450,0.61008564,123330.0,123320.0,0.4642]
[1755125289030,0.61008564,123330.0,123320.0,0.32436]
[1755125289234,0.61008564,123330.0,123320.0,0.46408]
[1755125289437,0.61008564,123330.0,123320.0,0.46404]
[1755125289849,0.61008564,123330.0,123320.0,0.464]
[1755125290054,0.24109771,123330.0,123320.0,0.32436]
[1755125290295,0.61008564,123330.0,123320.0,0.32436]
[1755125290898,0.61008564,123330.0,123320.0,0.464]
[1755125291481,0.61008564,123330.0,123320.0,0.86024]
[1755125291828,0.52736239,123330.0,123320.0,0.75932]
[1755125292433,0.15837446,123330.0,123320.0,0.32436]
[1755125292600,0.04115546,123330.0,123320.0,0.40708325]
[1755125292803,0.04115546,123330.0,123320.0,0.74708325]
[1755125293292,0.04115546,123330.0,123320.0,0.88664325]
[1755125293502,0.04115546,123330.0,123320.0,0.74708325]
[1755125293667,0.41014339,123330.0,123320.0,0.74708325]
[1755125293996,0.41339339,123330.0,123320.0,0.40708325]
[1755125294211,0.13408546,123330.0,123320.0,0.32436]
[1755125294383,0.13590316,123330.0,123320.0,0.464]
[1755125294715,0.50814109,123330.0,123320.0,0.464]
[1755125294911,0.50307339,123330.0,123320.0,0.464]
[1755125295295,0.04440546,123330.0,123320.0,0.46396]
[1755125295493,0.04947316,123330.0,123320.0,0.54668325]
[1755125296519,0.04440546,123330.0,123320.0,0.54668325]
[1755125296911,0.04115546,123330.0,123320.0,0.54668325]
[1755125297132,0.04115546,123330.0,123320.0,0.40708325]
[1755125297337,0.31070546,123330.0,123320.0,0.54656325]
[1755125298220,0.30745546,123330.0,123320.0,0.40708325]
[1755125298425,0.30745546,123330.0,123320.0,0.54624325]
[1755125301509,0.30745546,123330.0,123320.0,0.94244325]
[1755125302334,0.30745546,123330.0,123320.0,0.84144325]
[1755125302509,0.30745546,123330.0,123320.0,0.60128325]
[1755125302767,0.30745546,123330.0,123320.0,0.70128325]
[1755125302978,0.30745546,123330.0,123320.0,0.83992325]
[1755125303347,0.04115546,123330.0,123320.0,0.83992325]
[1755125303717,0.04115546,123330.0,123320.0,0.98572325]
[1755125305419,0.04115546,123330.0,123320.0,1.35471118]
[1755125305620,0.04115546,123330.0,123320.0,2.05036918]
[1755125306057,0.04115546,123330.0,123320.0,1.68138125]
[1755125306417,0.04115546,123330.0,123320.0,1.70638125]
[1755125306623,0.04115546,123330.0,123320.0,1.72813125]
[1755125307960,0.04115546,123330.0,123320.0,1.56449125]
[1755125308182,0.04115546,123330.0,123320.0,0.98560325]
[1755125309548,0.04115546,123330.0,123320.0,1.66024825]
[1755125309900,0.04115546,123330.0,123320.0,1.51666225]
[1755125310681,0.0330663,123330.0,123320.0,1.42489225]
[1755125310879,0.0330663,123330.0,123320.0,1.80944606]
[1755125311148,0.02497714,123330.0,123320.0,1.97327806]
[1755125311497,0.01688798,123330.0,123320.0,2.16747806]
[1755125311698,0.01688798,123330.0,123320.0,2.16763806]
[1755125311904,0.00879882,123330.0,123320.0,1.97363806]
[1755125312259,0.00879882,123330.0,123320.0,1.46473013]
[1755125312391,0.00070966,123330.0,123320.0,1.95819218]
[1755125312819,0.02164,123350.0,123340.0,0.02175]
[1755125313021,0.02164,123350.0,123340.0,1.98600621]
[1755125313238,0.02164,123350.0,123340.0,1.96425621]